fUST/lending_fUST_20251111
["ID","MTS","AMOUNT","RATE_DAILY","PERIOD"]
[393591651,1762824638666,-391.02538967,0.00018052,2]
[393591652,1762824638679,-108.97461033,0.00018052,2]
[393591653,1762824638689,-500.0,0.00018052,2]
[393591655,1762824638700,-500.0,0.00018052,2]
[393591656,1762824638710,-500.0,0.00018052,2]
[393591657,1762824638720,-500.0,0.00018052,2]
[393591658,1762824638730,-500.0,0.00018052,2]
[393591659,1762824638740,-500.0,0.00018052,2]
[393591660,1762824638750,-447.48353208,0.00018052,2]
[393591662,1762824638759,-500.0,0.00018052,2]
[393591663,1762824638772,-500.0,0.00018052,2]
[393591664,1762824638782,-500.0,0.00018052,2]
[393591665,1762824638793,-500.0,0.00018052,2]
[393591666,1762824638808,-500.0,0.00018052,2]
[393591668,1762824638818,-500.0,0.00018052,2]
[393591669,1762824638828,-500.0,0.00018052,2]
[393591670,1762824638837,-204.67925697,0.00018052,2]
[393591671,1762824638848,-500.0,0.00018052,2]
[393591672,1762824638858,-500.0,0.00018052,2]
[393591673,1762824638868,-500.0,0.00018052,2]
[393591675,1762824638878,-226.33586962,0.00018052,2]
[393591676,1762824638891,-273.66413038,0.00018052,2]
[393591677,1762824638903,-500.0,0.00018052,2]
[393591678,1762824638914,-500.0,0.00018052,2]
[393591679,1762824638924,-500.0,0.00018052,2]
[393591680,1762824638935,-500.0,0.00018052,2]
[393591682,1762824638945,-500.0,0.00018052,2]
[393591683,1762824638955,-364.97410909,0.00018052,2]
[393591768,1762824644219,213.132473,0.00017155,2]
[393591818,1762824646873,-135.02589091,0.00018052,2]
[393591819,1762824646883,-500.0,0.00018052,2]
[393591820,1762824646892,-500.0,0.00018052,2]
[393591821,1762824646902,-500.0,0.00018052,2]
[393591822,1762824646911,-500.0,0.00018052,2]
[393591824,1762824646921,-500.0,0.00018052,2]
[393591825,1762824646930,-500.0,0.00018052,2]
[393591826,1762824646939,-500.0,0.00018052,2]
[393591827,1762824646948,-500.0,0.00018052,2]
[393591828,1762824646957,-500.0,0.00018052,2]
[393591829,1762824646966,-500.0,0.00018052,2]
[393591830,1762824646976,-500.0,0.00018052,2]
[393591832,1762824646986,-500.0,0.00018052,2]
[393591833,1762824646995,-263.77410909,0.00018052,2]
[393591834,1762824647007,-236.22589091,0.00018052,2]
[393591835,1762824647017,-500.0,0.00018052,2]
[393591836,1762824647026,-500.0,0.00018052,2]
[393591837,1762824647036,-500.0,0.00018052,2]
[393591839,1762824647046,-209.30016638,0.00018052,2]
[393591840,1762824647056,-500.0,0.00018052,2]
[393591841,1762824647065,-500.0,0.00018052,2]
[393591842,1762824647075,-500.0,0.00018052,2]
[393591843,1762824647085,-500.0,0.00018052,2]
[393591844,1762824647095,-500.0,0.00018052,2]
[393591846,1762824647104,-500.0,0.00018052,2]
[393591847,1762824647114,-500.0,0.00018052,2]
[393591848,1762824647123,-500.0,0.00018052,2]
[393591849,1762824647133,-252.06567439,0.00018052,2]
[393591941,1762824652676,159.98135224,0.00037152,120]
[393592421,1762824683364,590.7,0.0003287,120]
[393592584,1762824693636,172.3821479,0.00037152,60]
[393592795,1762824716055,320.4938193,0.00037152,60]
[393592796,1762824718251,500.0,0.00037152,60]
[393592797,1762824718559,234.3686396,0.00037152,60]
[393592799,1762824730296,404.47831292,0.00037152,60]
[393592800,1762824740402,272.12060386,0.00037152,60]
[393592801,1762824749420,282.55542949,0.00037152,60]
[393592802,1762824762669,186.02364254,0.00037152,60]
[393592803,1762824776591,500.0,0.00037152,60]
[393592804,1762824777090,322.1334,0.00037152,60]
[393592805,1762824779020,183.17919996,0.00037152,60]
[393592806,1762824783315,194.89,0.00032877,120]
[393592898,1762824788699,500.0,0.00037152,60]
[393592923,1762824788951,289.49864563,0.00037152,60]
[393593351,1762824794803,366.13263908,0.00037152,60]
[393593352,1762824794933,279.87904515,0.00037152,60]
[393593357,1762824800903,150.68241421,0.00037152,60]
[393593358,1762824805243,164.07243848,0.00037152,60]
[393593359,1762824806647,318.81354978,0.00037152,60]
[393593360,1762824810421,420.76673377,0.00037152,60]
[393593361,1762824824140,166.89152197,0.00037152,60]
[393593362,1762824827652,270.43755317,0.00037151,60]
[393593363,1762824834854,1008.36,0.00032,120]
[393593364,1762824851797,161.39397155,0.00017538,2]
[393593365,1762824854246,290.5091488,0.00017538,2]
[393593366,1762824857689,516.46070897,0.00017538,2]
[393593367,1762824907847,300.0,0.000175,2]
[393593368,1762824918570,15199.38179842,0.00037151,20]
[393593369,1762824918763,300.0,0.000175,2]
[393593370,1762824929202,300.0,0.000175,2]
[393593371,1762824940994,300.0,0.000175,2]
[393593372,1762824980582,331.1067797,0.00017538,2]
[393593373,1762825025976,1662.57650324,0.00037151,120]
[393593374,1762825032651,500000.03769,0.000328,120]
[393593375,1762825039223,157.04015861,0.00037151,20]
[393593376,1762825041930,421.32567466,0.0001768,2]
[393593377,1762825103530,2631.8505475,0.00016977,2]
[393593378,1762825152115,360.2536796,0.00017015,2]
[393593379,1762825159340,156.25344275,0.00037183,60]
[393593380,1762825208392,250.0,0.00037183,120]
[393593381,1762825209101,250.0,0.00037183,120]
[393593382,1762825209749,250.0,0.00037183,120]
[393593383,1762825210372,250.0,0.00037183,120]
[393593384,1762825210991,250.0,0.00037183,120]
[393593385,1762825211620,250.0,0.00037183,120]
[393593386,1762825212224,250.0,0.00037183,120]
[393593387,1762825212855,250.0,0.00037183,120]
[393593390,1762825387539,1146.21943065,0.00017547,2]
[393593392,1762825497437,332.85,0.00037177,120]
[393593393,1762825511517,250.0,0.00037177,120]
[393593394,1762825512142,250.0,0.00037177,120]
[393593395,1762825512744,250.0,0.00037177,120]
[393593396,1762825513566,250.0,0.00037177,120]
[393593397,1762825514180,250.0,0.00037177,120]
[393593398,1762825514840,250.0,0.00037177,120]
[393593399,1762825515503,250.0,0.00037177,120]
[393593400,1762825516122,250.0,0.00037177,120]
[393593402,1762825632294,163.0,0.00037177,120]
[393593403,1762825719454,153.7836101,0.00037177,21]
[393593404,1762825778005,214.0,0.00037177,120]
[393593443,1762825832709,-1010.00614396,0.00017866,2]
[393593446,1762825832728,-189.99385604,0.00017866,2]
[393593448,1762825832738,-8673.3260422,0.00017867,2]
[393593450,1762825832747,-866.0,0.00017867,2]
[393593452,1762825832757,-300.0,0.00017868,2]
[393593454,1762825832766,-300.0,0.00017869,2]
[393593456,1762825832776,-202.14279388,0.0001787,2]
[393593458,1762825832784,-652.0,0.00017951,2]
[393593460,1762825832795,-10048.40532611,0.00017952,2]
[393593462,1762825832805,-999.9996,0.00017965,2]
[393593464,1762825832814,-999.9996,0.00017965,2]
[393593466,1762825832824,-999.9996,0.00017965,2]
[393593468,1762825832833,-999.9996,0.00017965,2]
[393593470,1762825832842,-999.9996,0.00017965,2]
[393593472,1762825832851,-999.9996,0.00017965,2]
[393593474,1762825832861,-999.9996,0.00017965,2]
[393593476,1762825832871,-999.9996,0.00017965,2]
[393593478,1762825832880,-999.9996,0.00017965,2]
[393593480,1762825832889,-999.9996,0.00017965,2]
[393593482,1762825832900,-999.9996,0.00017965,2]
[393593484,1762825832910,-999.9996,0.00017965,2]
[393593486,1762825832920,-999.9996,0.00017965,2]
[393593488,1762825832931,-999.9996,0.00017965,2]
[393593490,1762825832940,-9618.69985499,0.00017967,2]
[393593492,1762825832952,-1083.73204226,0.00017967,2]
[393593494,1762825832964,-31596.67618306,0.00017967,2]
[393593496,1762825832976,-7700.89191969,0.00017967,2]
[393593498,1762825832985,-500.0,0.00017968,2]
[393593500,1762825832994,-500.0,0.00017968,2]
[393593502,1762825833003,-500.0,0.00017968,2]
[393593504,1762825833013,-500.0,0.00017968,2]
[393593506,1762825833022,-500.0,0.00017968,2]
[393593508,1762825833032,-500.0,0.00017968,2]
[393593510,1762825833045,-500.0,0.00017968,2]
[393593512,1762825833055,-500.0,0.00017968,2]
[393593514,1762825833064,-423.61449145,0.00017968,2]
[393593516,1762825833074,-500.0,0.00017968,2]
[393593518,1762825833083,-151.0,0.00017968,2]
[393593520,1762825833093,-548.46625487,0.00017969,2]
[393593522,1762825833103,-500.0,0.0001797,2]
[393593524,1762825833112,-151.0,0.0001797,2]
[393593526,1762825833122,-500.0,0.0001797,2]
[393593528,1762825833134,-500.0,0.0001797,2]
[393593530,1762825833143,-151.0,0.0001797,2]
[393593532,1762825833153,-151.0,0.0001797,2]
[393593534,1762825833164,-151.0,0.0001797,2]
[393593536,1762825833173,-151.0,0.0001797,2]
[393593538,1762825833183,-151.0,0.0001797,2]
[393593540,1762825833192,-500.0,0.0001797,2]
[393593542,1762825833201,-500.0,0.0001797,2]
[393593544,1762825833211,-500.0,0.0001797,2]
[393593546,1762825833221,-500.8660057,0.00017973,2]
[393593548,1762825833232,-161.74798496,0.00017973,2]
[393593550,1762825833242,-500.0,0.00017973,2]
[393593552,1762825833252,-180.19003417,0.00017973,2]
[393593554,1762825833262,-1000.0,0.00017987,2]
[393593555,1762825833272,-1000.0,0.00017987,2]
[393593558,1762825833284,-1000.0,0.00017987,2]
[393593560,1762825833301,-1000.0,0.00017987,2]
[393593561,1762825833311,-1000.0,0.00017987,2]
[393593563,1762825833322,-539.21429857,0.00017987,2]
[393593565,1762825833334,-500.0,0.00017989,2]
[393593568,1762825833347,-86230.21551065,0.0001799,2]
[393593570,1762825833358,-151.0,0.00018,2]
[393593571,1762825833369,-151.0,0.00018,2]
[393593573,1762825833379,-151.0,0.00018,2]
[393593575,1762825833391,-151.0,0.00018,2]
[393593577,1762825833400,-151.0,0.00018,2]
[393593579,1762825833410,-151.0,0.00018,2]
[393593581,1762825833420,-151.0,0.00018,2]
[393593583,1762825833431,-151.0,0.00018,2]
[393593585,1762825833442,-151.0,0.00018,2]
[393593587,1762825833452,-151.0,0.00018,2]
[393593599,1762825833565,-196.93,0.00018,2]
[393593601,1762825833577,-501.82892558,0.00018023,2]
[393593603,1762825833586,-503.09362122,0.00018023,2]
[393593605,1762825833597,-500.55402683,0.00018023,2]
[393593607,1762825833617,-151.0,0.00018023,2]
[393593609,1762825833636,-500.0,0.00018025,2]
[393593610,1762825833646,-151.0,0.00018025,2]
[393593613,1762825833657,-500.0,0.00018025,2]
[393593615,1762825833667,-500.0,0.00018025,2]
[393593617,1762825833678,-152.39172497,0.00018025,2]
[393593619,1762825833687,-205.84190143,0.00018025,2]
[393593621,1762825833697,-151.19958529,0.00018025,2]
[393593623,1762825833707,-500.0,0.00018025,2]
[393593625,1762825833716,-500.0,0.00018025,2]
[393593627,1762825833726,-502.44528981,0.00018025,2]
[393593629,1762825833735,-271.0,0.00018028,2]
[393593630,1762825833746,-20620.315785,0.00018052,2]
[393593633,1762825833756,-294.4930552,0.00018052,2]
[393593634,1762825833766,-500.0,0.00018052,2]
[393593636,1762825833776,-500.0,0.00018052,2]
[393593639,1762825833786,-436.70890197,0.00018052,2]
[393593640,1762825833801,-5326.8386168,0.00018052,2]
[393593642,1762825833811,-151.0,0.00018052,2]
[393593644,1762825833822,-151.48773661,0.00018052,2]
[393593646,1762825833831,-151.0,0.00018052,2]
[393593648,1762825833840,-151.69855877,0.00018052,2]
[393593650,1762825833850,-151.45565977,0.00018052,2]
[393593652,1762825833859,-151.98133424,0.00018052,2]
[393593654,1762825833869,-151.0,0.00018052,2]
[393593656,1762825833879,-151.77225199,0.00018052,2]
[393593658,1762825833888,-151.0,0.00018052,2]
[393593660,1762825833897,-199.52762521,0.00018052,2]
[393593662,1762825833907,-151.0,0.00018052,2]
[393593663,1762825833917,-151.0,0.00018052,2]
[393593665,1762825833926,-200.0,0.00018052,2]
[393593667,1762825833935,-200.0,0.00018052,2]
[393593669,1762825833945,-47346.84865109,0.00018053,2]
[393593677,1762825834025,-24364.70052573,0.00018053,2]
[393593679,1762825834037,-10650.5,0.00018053,2]
[393593681,1762825834052,-3066.11303046,0.00018053,2]
[393593683,1762825834064,-245194.1349697,0.00018053,2]
[393593685,1762825834075,-164932.91654182,0.00018053,2]
[393593700,1762825838449,-999.9996,0.00017965,2]
[393593701,1762825838459,-999.9996,0.00017965,2]
[393593702,1762825838469,-999.9996,0.00017965,2]
[393593703,1762825838479,-500.0,0.00017965,2]
[393593704,1762825838489,-500.0,0.00017965,2]
[393593705,1762825838498,-500.0,0.00017965,2]
[393593706,1762825838509,-500.0,0.00017965,2]
[393593707,1762825838519,-601.00737273,0.00017965,2]
[393593708,1762825838528,-500.0,0.00017965,2]
[393593709,1762825838538,-500.0,0.00017965,2]
[393593710,1762825838549,-500.0,0.00017965,2]
[393593711,1762825838560,-500.0,0.00017965,2]
[393593712,1762825838569,-601.00737273,0.00017965,2]
[393593713,1762825838580,-500.0,0.00017965,2]
[393593714,1762825838590,-500.0,0.00017965,2]
[393593715,1762825838599,-500.0,0.00017965,2]
[393593716,1762825838609,-500.0,0.00017965,2]
[393593717,1762825838619,-500.0,0.00017965,2]
[393593718,1762825838630,-601.00737273,0.00017965,2]
[393593719,1762825838640,-500.0,0.00017965,2]
[393593720,1762825838650,-500.0,0.00017965,2]
[393593721,1762825838661,-500.0,0.00017965,2]
[393593722,1762825838671,-364.34164187,0.00017965,2]
[393593723,1762825838680,-500.0,0.00017965,2]
[393593724,1762825838690,-601.00737273,0.00017965,2]
[393593725,1762825838701,-347.46817976,0.00017965,2]
[393593726,1762825838711,-604.16814968,0.00017965,2]
[393593727,1762825838721,-394.77104327,0.00017965,2]
[393593728,1762825838738,-105.22895673,0.00017965,2]
[393593729,1762825838748,-500.0,0.00017965,2]
[393593730,1762825838757,-500.0,0.00017965,2]
[393593731,1762825838767,-500.0,0.00017965,2]
[393593732,1762825838777,-601.00737273,0.00017965,2]
[393593733,1762825838787,-500.0,0.00017965,2]
[393593734,1762825838797,-500.0,0.00017965,2]
[393593735,1762825838807,-601.00737273,0.00017965,2]
[393593736,1762825838817,-500.0,0.00017965,2]
[393593737,1762825838826,-500.0,0.00017965,2]
[393593738,1762825838836,-500.0,0.00017965,2]
[393593739,1762825838845,-601.00737273,0.00017965,2]
[393593740,1762825838855,-500.0,0.00017965,2]
[393593741,1762825838865,-500.0,0.00017965,2]
[393593742,1762825838875,-500.0,0.00017965,2]
[393593743,1762825838886,-601.00737273,0.00017965,2]
[393593744,1762825838895,-500.0,0.00017965,2]
[393593745,1762825838904,-500.0,0.00017965,2]
[393593746,1762825838914,-601.00737273,0.00017965,2]
[393593747,1762825838923,-500.0,0.00017965,2]
[393593748,1762825838932,-500.0,0.00017965,2]
[393593749,1762825838941,-500.0,0.00017965,2]
[393593750,1762825838951,-500.0,0.00017965,2]
[393593751,1762825838960,-500.0,0.00017965,2]
[393593752,1762825838970,-500.0,0.00017965,2]
[393593753,1762825838979,-351.45027688,0.00017965,2]
[393593754,1762825838989,-500.0,0.00017965,2]
[393593755,1762825838998,-500.0,0.00017965,2]
[393593756,1762825839008,-500.0,0.00017965,2]
[393593757,1762825839018,-500.0,0.00017965,2]
[393593758,1762825839028,-500.0,0.00017965,2]
[393593759,1762825839038,-500.0,0.00017965,2]
[393593760,1762825839050,-500.0,0.00017965,2]
[393593761,1762825839060,-500.0,0.00017965,2]
[393593762,1762825839070,-601.00737273,0.00017965,2]
[393593763,1762825839080,-500.0,0.00017965,2]
[393593764,1762825839090,-500.0,0.00017965,2]
[393593765,1762825839099,-601.00737273,0.00017965,2]
[393593766,1762825839109,-500.0,0.00017965,2]
[393593767,1762825839119,-500.0,0.00017965,2]
[393593768,1762825839129,-601.00737273,0.00017965,2]
[393593769,1762825839138,-500.0,0.00017965,2]
[393593770,1762825839148,-601.00737273,0.00017965,2]
[393593771,1762825839158,-500.0,0.00017965,2]
[393593772,1762825839168,-500.0,0.00017965,2]
[393593773,1762825839182,-601.00737273,0.00017965,2]
[393593774,1762825839191,-500.0,0.00017965,2]
[393593775,1762825839201,-601.00737273,0.00017965,2]
[393593776,1762825839211,-500.0,0.00017965,2]
[393593777,1762825839221,-601.00737273,0.00017965,2]
[393593778,1762825839230,-324.77328929,0.00017965,2]
[393593779,1762825839239,-500.0,0.00017965,2]
[393593780,1762825839249,-601.00737273,0.00017965,2]
[393593781,1762825839259,-500.0,0.00017965,2]
[393593782,1762825839269,-601.00737273,0.00017965,2]
[393593783,1762825839278,-601.00737273,0.00017965,2]
[393593784,1762825839287,-601.00737273,0.00017965,2]
[393593785,1762825839298,-601.00737273,0.00017965,2]
[393593786,1762825839308,-601.00737273,0.00017965,2]
[393593787,1762825839317,-601.00737273,0.00017965,2]
[393593788,1762825839327,-601.00737273,0.00017965,2]
[393593789,1762825839337,-601.00737273,0.00017965,2]
[393593790,1762825839346,-601.00737273,0.00017965,2]
[393593791,1762825839356,-601.00737273,0.00017965,2]
[393593792,1762825839366,-601.00737273,0.00017965,2]
[393593793,1762825839376,-601.00737273,0.00017965,2]
[393593794,1762825839386,-601.00737273,0.00017965,2]
[393593795,1762825839396,-601.00737273,0.00017965,2]
[393593796,1762825839406,-601.00737273,0.00017965,2]
[393593797,1762825839415,-601.00737273,0.00017965,2]
[393593798,1762825839426,-601.00737273,0.00017965,2]
[393593799,1762825839435,-601.00737273,0.00017965,2]
[393593800,1762825839445,-601.00737273,0.00017965,2]
[393593801,1762825839455,-601.00737273,0.00017965,2]
[393593802,1762825839465,-601.00737273,0.00017965,2]
[393593803,1762825839475,-601.00737273,0.00017965,2]
[393593804,1762825839485,-601.00737273,0.00017965,2]
[393593805,1762825839596,-601.00737273,0.00017965,2]
[393593806,1762825839607,-601.00737273,0.00017965,2]
[393593807,1762825839617,-601.00737273,0.00017965,2]
[393593808,1762825839629,-601.00737273,0.00017965,2]
[393593809,1762825839639,-601.00737273,0.00017965,2]
[393593810,1762825839649,-601.00737273,0.00017965,2]
[393593811,1762825839659,-601.00737273,0.00017965,2]
[393593812,1762825839669,-601.00737273,0.00017965,2]
[393593813,1762825839679,-601.00737273,0.00017965,2]
[393593814,1762825839690,-601.00737273,0.00017965,2]
[393593815,1762825839701,-19288.58556121,0.00018053,2]
[393593816,1762825839714,-8784.3933303,0.00018053,2]
[393593817,1762825839725,-33573.24555841,0.00018053,2]
[393593818,1762825839736,-64663.09253941,0.00018053,2]
[393593819,1762825839747,-22950.66672562,0.00018053,2]
[393593820,1762825839758,-51429.27555228,0.00018053,2]
[393593821,1762825839770,-19227.72316444,0.00018053,2]
[393593822,1762825839782,-16861.96021824,0.00018053,2]
[393593823,1762825839794,-10639.0,0.00018053,2]
[393593845,1762825843652,-319.2,0.00018053,2]
[393593863,1762825846810,-484.14,0.00018053,2]
[393593866,1762825973915,479.460208,0.00013699,2]
[393593870,1762826059365,263.47640008,0.00018976,7]
[393593872,1762826196777,440.54548783,0.00018976,7]
[393593873,1762826238894,206.0,0.0001768,2]
[393593874,1762826249664,232.2568306,0.00037125,120]
[393593875,1762826447609,211.53402908,0.000328,120]
[393593876,1762826543365,1035.9,0.00032877,120]
[393593881,1762826722524,160.0,0.00032877,120]
[393593882,1762826737457,160.0,0.00032877,120]
[393593884,1762826752302,160.0,0.00032877,120]
[393593885,1762826762969,6268.25470704,0.00037129,20]
[393593886,1762826774108,327.39,0.00037129,20]
[393593887,1762826774402,160.0,0.00032877,120]
[393593888,1762826780662,2114.55759177,0.00037129,20]
[393593889,1762826796399,175.0,0.00032877,120]
[393593890,1762826815265,178.0,0.00032877,120]
[393593891,1762826883610,179.4,0.00015485,2]
[393593902,1762826942815,10000.0,0.00032877,120]
[393593903,1762826963540,10000.0,0.00032877,120]
[393593904,1762826973537,10000.0,0.00032877,120]
[393593905,1762826992717,7156.0,0.00032877,120]
[393593945,1762827032731,-160.81857196,0.00017718,2]
[393593946,1762827032740,-204.639938,0.00017729,2]
[393593947,1762827032749,-300.0,0.00017772,2]
[393593948,1762827032759,-300.0,0.00017772,2]
[393593949,1762827032768,-300.0,0.00017772,2]
[393593950,1762827032778,-300.0,0.00017772,2]
[393593951,1762827032787,-300.0,0.00017772,2]
[393593952,1762827032796,-1200.0,0.00017772,2]
[393593953,1762827032806,-6787.71075074,0.00017773,2]
[393593954,1762827032815,-721.8307393,0.00017858,2]
[393593966,1762827038659,-7589.16028696,0.00017759,2]
[393593967,1762827038670,-138.1689167,0.00017858,2]
[393593968,1762827038680,-859.999656,0.00017858,2]
[393593969,1762827038690,-859.999656,0.00017858,2]
[393593970,1762827038700,-210.07807526,0.00017858,2]
[393593971,1762827038710,-859.999656,0.00017858,2]
[393593972,1762827038719,-93.59375308,0.00017858,2]
[393594010,1762827040818,-500.0,0.00017858,2]
[393594012,1762827040827,-500.0,0.00017858,2]
[393594014,1762827040837,-500.0,0.00017858,2]
[393594016,1762827040847,-500.0,0.00017858,2]
[393594018,1762827040857,-500.0,0.00017858,2]
[393594020,1762827040867,-500.0,0.00017858,2]
[393594022,1762827040876,-500.0,0.00017858,2]
[393594024,1762827040886,-500.0,0.00017858,2]
[393594026,1762827040895,-500.0,0.00017858,2]
[393594028,1762827040904,-500.0,0.00017858,2]
[393594030,1762827040913,-500.0,0.00017858,2]
[393594032,1762827040923,-500.0,0.00017858,2]
[393594034,1762827040932,-301.63597145,0.00017858,2]
[393594036,1762827040941,-500.0,0.00017858,2]
[393594038,1762827040950,-500.0,0.00017858,2]
[393594040,1762827040960,-500.0,0.00017858,2]
[393594042,1762827040970,-500.0,0.00017858,2]
[393594044,1762827040980,-500.0,0.00017858,2]
[393594046,1762827040993,-500.0,0.00017858,2]
[393594048,1762827041003,-500.0,0.00017858,2]
[393594050,1762827041012,-500.0,0.00017858,2]
[393594052,1762827041022,-500.0,0.00017858,2]
[393594054,1762827041031,-500.0,0.00017858,2]
[393594056,1762827041041,-631.42810745,0.00017858,2]
[393594058,1762827041051,-205.71669743,0.00017858,2]
[393594060,1762827041060,-500.0,0.00017858,2]
[393594062,1762827041073,-500.0,0.00017858,2]
[393594064,1762827041082,-500.0,0.00017858,2]
[393594066,1762827041092,-500.0,0.00017858,2]
[393594068,1762827041102,-500.0,0.00017858,2]
[393594070,1762827041112,-414.34164187,0.00017858,2]
[393594072,1762827041121,-500.0,0.00017858,2]
[393594074,1762827041130,-500.0,0.00017858,2]
[393594076,1762827041140,-500.0,0.00017858,2]
[393594078,1762827041150,-500.0,0.00017858,2]
[393594080,1762827041159,-500.0,0.00017858,2]
[393594082,1762827041168,-500.0,0.00017858,2]
[393594084,1762827041178,-500.0,0.00017858,2]
[393594086,1762827041187,-500.0,0.00017858,2]
[393594088,1762827041196,-500.0,0.00017858,2]
[393594090,1762827041206,-500.0,0.00017858,2]
[393594092,1762827041215,-500.0,0.00017858,2]
[393594094,1762827041224,-500.0,0.00017858,2]
[393594096,1762827041233,-500.0,0.00017858,2]
[393594098,1762827041243,-500.0,0.00017858,2]
[393594100,1762827041252,-500.0,0.00017858,2]
[393594102,1762827041262,-500.0,0.00017858,2]
[393594104,1762827041271,-168.14967653,0.00017858,2]
[393594106,1762827041281,-500.0,0.00017858,2]
[393594109,1762827041291,-500.0,0.00017858,2]
[393594111,1762827041300,-500.0,0.00017858,2]
[393594124,1762827041417,-500.0,0.00017858,2]
[393594126,1762827041427,-500.0,0.00017858,2]
[393594128,1762827041436,-500.0,0.00017858,2]
[393594130,1762827041448,-500.0,0.00017858,2]
[393594132,1762827041459,-500.0,0.00017858,2]
[393594134,1762827041472,-500.0,0.00017858,2]
[393594136,1762827041481,-500.0,0.00017858,2]
[393594138,1762827041490,-500.0,0.00017858,2]
[393594140,1762827041499,-500.0,0.00017858,2]
[393594142,1762827041509,-500.0,0.00017858,2]
[393594144,1762827041518,-500.0,0.00017858,2]
[393594146,1762827041529,-500.0,0.00017858,2]
[393594148,1762827041537,-500.0,0.00017858,2]
[393594150,1762827041548,-500.0,0.00017858,2]
[393594152,1762827041558,-500.0,0.00017858,2]
[393594154,1762827041568,-500.0,0.00017858,2]
[393594156,1762827041578,-500.0,0.00017858,2]
[393594158,1762827041587,-766.40590292,0.00017858,2]
[393594160,1762827041597,-859.999656,0.00017858,2]
[393594162,1762827041606,-859.999656,0.00017858,2]
[393594164,1762827041615,-859.999656,0.00017858,2]
[393594166,1762827041624,-859.999656,0.00017858,2]
[393594169,1762827041637,-859.999656,0.00017858,2]
[393594171,1762827041647,-859.999656,0.00017858,2]
[393594172,1762827041656,-859.999656,0.00017858,2]
[393594173,1762827041666,-859.999656,0.00017858,2]
[393594174,1762827041676,-859.999656,0.00017858,2]
[393594175,1762827041685,-859.999656,0.00017858,2]
[393594176,1762827041694,-859.999656,0.00017858,2]
[393594177,1762827041704,-859.999656,0.00017858,2]
[393594178,1762827041713,-859.999656,0.00017858,2]
[393594179,1762827041723,-859.999656,0.00017858,2]
[393594180,1762827041732,-859.999656,0.00017858,2]
[393594181,1762827041742,-39281.28778844,0.00017859,2]
[393594182,1762827041753,-1000.0,0.00017864,2]
[393594183,1762827041762,-1000.0,0.00017864,2]
[393594184,1762827041771,-434.31464128,0.00017864,2]
[393594185,1762827041781,-500.0,0.00017867,2]
[393594186,1762827041790,-200.65638726,0.00017867,2]
[393594187,1762827041800,-442472.56190145,0.00017868,2]
[393594629,1762827047510,-500.0,0.00017858,2]
[393594630,1762827047521,-500.0,0.00017858,2]
[393594631,1762827047530,-500.0,0.00017858,2]
[393594632,1762827047540,-500.0,0.00017858,2]
[393594633,1762827047550,-500.0,0.00017858,2]
[393594634,1762827047560,-500.0,0.00017858,2]
[393594635,1762827047569,-500.0,0.00017858,2]
[393594636,1762827047579,-500.0,0.00017858,2]
[393594637,1762827047588,-500.0,0.00017858,2]
[393594638,1762827047598,-500.0,0.00017858,2]
[393594639,1762827047608,-500.0,0.00017858,2]